Cogmind - Beta 13 @@@ ROGUE MODE // 2024.06.06 @ 19:04:06 Player: Trantor Result: Destroyed by as-89479 with Assembled Heavy Rifle Performance ------------- Evolutions (0) 0 Regions Visited (4) 800 Robots Destroyed (26) 130 Value Destroyed (445) 445 Prototype IDs (25) 500 Alien Tech Used (0) 0 Bonus (300) 300 TOTAL SCORE: 2175 Bonus ------- Aligned with FarCom 300 Cogmind --------- Core Integrity 0/250 Matter 227/300 Energy 100/100 System Corruption 0% Temperature Cool (22) Movement Treading (480) Ox4 Location -9/Mines Parts ------- > --- POWER (1) -------- (None) > --- PROPULSION (2) --- Light Treads > --- UTILITY (2) ------ Huge Storage Unit Core Shielding > --- WEAPON (2) ------- Improved Light Cannon Improved Light Cannon > --- INVENTORY (25) --- Light Treads Light Treads Light Treads Light Treads Light Treads Light Treads Light Treads Light Treads Wheel Heat Sink Small Storage Unit High-capacity Matter Pod (154) Sensor Array Signal Interpreter Core Shielding Light Armor Plating Shotgun Rocket Launcher Rocket Launcher Rocket Launcher Rocket Launcher Field Lobotomy Kit (5) Maul Peak State ------------ > --- POWER ------------ Ion Engine > --- PROPULSION ------- Light Treads Wheel > --- UTILITY ---------- Huge Storage Unit Core Shielding > --- WEAPON ----------- Improved Light Cannon Improved Light Cannon > --- INVENTORY -------- Light Treads Light Treads Light Treads Light Treads Light Treads Light Treads Light Treads Light Treads Wheel Heat Sink Small Storage Unit Sensor Array Signal Interpreter Core Shielding Light Armor Plating Shotgun Improved Light Cannon Improved Light Cannon Rocket Launcher Rocket Launcher Rocket Launcher Rocket Launcher Field Lobotomy Kit Maul [Rating: 13] Favorites ----------- Power Ion Engine Engine Ion Engine Propulsion Light Treads Treads Light Treads Leg Aluminum Leg Wheel Wheel Utility Huge Storage Unit Device Sensor Array Storage Huge Storage Unit Protection Core Shielding Weapon Improved Light Cannon Energy Gun Small Laser Ballistic Cannon Improved Light Cannon Launcher Rocket Launcher Build | -11 -10 -10 -10 -9 ------- Run | Yrd Mat Min Exi Min Slots Evolved . | . . . . . Power . | . . . . . Propulsion . | . . . . . Utility . | . . . . . Weapon . | . . . . . Parts Attached 20 | . 12 4 1 3 Power 2 | . 1 . 1 . Engine 2 | . 1 . 1 . Core . | . . . . . Reactor . | . . . . . Propulsion 8 | . 6 2 . . Treads 5 | . 4 1 . . Leg . | . . . . . Wheel 3 | . 2 1 . . Hover . | . . . . . Flight . | . . . . . Utility 3 | . 3 . . . Device 1 | . 1 . . . Storage 1 | . 1 . . . Processor . | . . . . . Hackware . | . . . . . Protection 1 | . 1 . . . Artifact . | . . . . . Weapon 7 | . 2 2 . 3 Energy Gun . | . . . . . Energy Cannon . | . . . . . Ballistic Gun . | . . . . . Ballistic Cannon 5 | . 2 1 . 2 Launcher 2 | . . 1 . 1 Special Weapon . | . . . . . Impact Weapon . | . . . . . Slashing Weapon . | . . . . . Piercing Weapon . | . . . . . Special Melee Weapon . | . . . . . Unidentified Prototypes . | . . . . . Parts Lost 7 | . 1 2 . 4 Power 2 | . . 1 . 1 Propulsion 2 | . . 1 . 1 Utility . | . . . . . Weapon 3 | . 1 . . 2 Highest Loss Streak 3 | . 1 2 . 3 To Critical Strikes . | . . . . . Average Slot Usage (%) 96 | . 98 92 98 96 Engine 12 | . 14 8 12 12 Treads 15 | . 21 4 14 14 Wheel 10 | . 3 22 14 14 Device 3 | . 5 . . . Storage 14 | . 14 14 14 14 Protection 10 | . 7 14 14 14 Energy Gun 12 | . 22 . . . Ballistic Cannon 12 | . 4 20 28 16 Launcher 2 | . . 7 . 11 Naked Turns . | . . . . . Heaviest Build 94 | 13 94 94 94 94 Greatest Support 40 | 20 40 20 10 10 Greatest Overweight (x) 9 | . 4 8 9 9 Average Overweight (x) 4 | . 2 5 8 9 Largest Inventory Capacity 25 | 8 25 25 25 25 Average Capacity 24 | 8 23 25 25 25 Most Carried 25 | 6 25 25 25 25 Average Carried 21 | 6 19 24 24 23 Final Capacity 25 | 8 25 25 25 25 Final Carried 25 | 6 25 25 25 23 Class Distribution -------------------- 100% | Mutant Dominant Class ---------------- Mutant | -10/Materials Mutant | -10/Mines Mutant | -10/Exiles Mutant | -9/Mines Resources | -11 -10 -10 -10 -9 ----------- Run | Yrd Mat Min Exi Min Matter Collected 572 | 200 82 183 92 15 Remotely . | . . . . . Salvage Created 612 | . 497 95 . 20 Parts 41 | . 24 12 . 5 Haulers Intercepted 2 | . 2 . . . Recyclers Shooed 2 | . . 2 . . Parts Field Recycled . | . . . . . Retrieved Matter . | . . . . . Parts Self-Destructed . | . . . . . Prevented . | . . . . . Kills | -11 -10 -10 -10 -9 ------- Run | Yrd Mat Min Exi Min Combat Hostiles Destroyed 19 | . 9 7 . 3 Guns 9 | . 9 . . . Cannons 2 | . . 1 . 1 AOE 8 | . . 6 . 2 Classes Destroyed 7 | . 5 2 . . Builder 1 | . . 1 . . Tunneler 1 | . . 1 . . Hauler 2 | . 2 . . . Operator 1 | . 1 . . . Watcher 2 | . 2 . . . Swarmer 12 | . 3 6 . 3 Grunt 6 | . 6 . . . Best Kill Streak 4 | . 4 3 . 3 Combat Bots Only 4 | . 4 3 . 3 Max Kills in Single Turn 3 | . 1 3 . 2 Gunslinging . | . . . . . Exploded 3 | . . 3 . 2 Melee . | . . . . . Uniques/NPCs Destroyed 1 | . . 1 . . YI-UF0 (-10/Mines) Combat | -11 -10 -10 -10 -9 -------- Run | Yrd Mat Min Exi Min Hostile Shots Fired 106 | . 55 29 . 22 Missed 34 | . 17 14 . 3 Damage Taken 1524 | . 502 509 . 513 Core 251 | . 105 72 . 74 Absorbed by Shields . | . . . . . Redirected to Shielding 33 | . 2 15 . 16 Core Remaining (%) 100 | 100 . . . . Volleys Fired 74 | . 49 16 . 9 Largest 2 | . 2 2 . 2 Hottest 90 | . 90 78 . 78 Shots Fired 142 | . 98 28 . 16 Gun 94 | . 94 . . . Cannon 42 | . 4 24 . 14 Launcher 6 | . . 4 . 2 Special . | . . . . . Kinetic 42 | . 4 24 . 14 Thermal 94 | . 94 . . . Explosive 6 | . . 4 . 2 Electromagnetic . | . . . . . Robot Hit Streak 12 | . 12 7 . 5 Robot Miss Streak 6 | . 4 6 . 2 Penetration Max . | . . . . . Secondary Targets . | . . . . . Shots Hit Robots 84 | . 58 15 . 11 Core Hits 41 | . 26 10 . 5 Critical Kills . | . . . . . Critical Parts Destroyed . | . . . . . Critical Strikes 4 | . 4 . . . Burn 4 | . 4 . . . Melee Attacks . | . . . . . Impact . | . . . . . Slashing . | . . . . . Piercing . | . . . . . Sneak Attacks . | . . . . . Combat Hostiles . | . . . . . Follow-up Attacks . | . . . . . Damage Inflicted 1800 | . 740 697 . 363 Guns 670 | . 670 . . . Cannons 579 | . 41 332 . 206 Explosions 522 | . . 365 . 157 Melee . | . . . . . Ramming 29 | . 29 . . . Kinetic 579 | . 41 332 . 206 Thermal 746 | . 670 76 . . Explosive 446 | . . 289 . 157 Electromagnetic . | . . . . . Impact . | . . . . . Slashing . | . . . . . Piercing . | . . . . . Highest Corruption . | . . . . . Average Corruption . | . . . . . Corruption Purged . | . . . . . Corruption Blocked . | . . . . . Overload Shots . | . . . . . Overflow Damage 49 | . . 49 . . Projectiles 11 | . . 11 . . Explosions 38 | . . 38 . . Melee . | . . . . . Knockbacks 6 | . . 5 . 1 Impact . | . . . . . Kinetic 6 | . . 5 . 1 Secondary . | . . . . . Self-Inflicted Damage 51 | . 14 37 . . Shots 1 | . . 1 . . Rammed 1 | . 1 . . . Targets Rammed 1 | . 1 . . . Kicked . | . . . . . Crushed . | . . . . . Highest Temperature 273 | . 273 65 . 36 Average Temperature 71 | . 84 21 . 17 Received Heat Transfer 219 | . 219 . . . Siege Activations . | . . . . . Robots Corrupted . | . . . . . Combat Hostiles . | . . . . . Parts Fried . | . . . . . Impact Corruptions . | . . . . . Robots Melted . | . . . . . Combat Hostiles . | . . . . . Parts Melted 6 | . 5 1 . . Heat Transferred 2181 | . 2081 100 . . Parts Sabotaged . | . . . . . Parts Stolen . | . . . . . Parts Stripped . | . . . . . Power Chain Reactions . | . . . . . Alert | -11 -10 -10 -10 -9 ------- Run | Yrd Mat Min Exi Min Peak Influence 264 | . 264 202 . 78 Initial 3 | . . 3 . . Average 51 | . 54 43 . 65 Maximum Alert Level 1 | . 1 1 . . Low Security (%) 91 | 100 92 88 . 100 Level 1 8 | . 7 11 . . Level 2 . | . . . . . Level 3 . | . . . . . Level 4 . | . . . . . Level 5 . | . . . . . High Security . | . . . . . Max Security . | . . . . . Squads Dispatched 1 | . 1 . . . Investigation . | . . . . . Extermination . | . . . . . Reinforcement 1 | . 1 . . . Assault . | . . . . . Garrison . | . . . . . Intercept . | . . . . . Searches Triggered . | . . . . . Construction Impeded . | . . . . . Haulers Reinforced . | . . . . . Active Scanning Responses . | . . . . . Cargo Convoy Interrupts . | . . . . . Stealth | -11 -10 -10 -10 -9 --------- Run | Yrd Mat Min Exi Min Distress Signals 1 | . 1 . . . Communications Jammed . | . . . . . Distress Signals . | . . . . . Times Spotted 35 | . 23 7 . 5 Peak Tracking Total 6 | . 6 3 . 3 Tactical Retreats 2 | . 1 1 . . Traps | -11 -10 -10 -10 -9 ------- Run | Yrd Mat Min Exi Min Traps Triggered 1 | . 1 . . . Indirectly . | . . . . . Trap Hack Attempts . | . . . . . Triggered . | . . . . . Disarmed . | . . . . . Reprogrammed . | . . . . . Reused . | . . . . . Traps Extracted . | . . . . . Installed . | . . . . . Triggered . | . . . . . Machines | -11 -10 -10 -10 -9 ---------- Run | Yrd Mat Min Exi Min Machines Disabled 3 | . 2 1 . . Max in Single Turn 2 | . 2 1 . . Machines Repaired . | . . . . . Machines Dismantled . | . . . . . Machines Sabotaged . | . . . . . Overloaded Fab Kills . | . . . . . Hacking | -11 -10 -10 -10 -9 --------- Run | Yrd Mat Min Exi Min Machines Accessed 9 | . 7 . 2 . Terminals 6 | . 6 . . . Fabricators . | . . . . . Repair Stations . | . . . . . Recycling Units 1 | . 1 . . . Scanalyzers . | . . . . . Garrison Access . | . . . . . Total Hacks 21 | . 19 . 2 . Successful 11 | . 9 . 2 . Failed 10 | . 10 . . . Catastrophic 1 | . 1 . . . Database Lockouts . | . . . . . Manual 8 | . 7 . 1 . Terminals 18 | . 18 . . . Fabricators . | . . . . . Repair Stations . | . . . . . Recycling Units 1 | . 1 . . . Scanalyzers . | . . . . . Garrison Access . | . . . . . Terminal Hacks 10 | . 8 . 2 . Record 1 | . . . 1 . Robot Analysis 3 | . 3 . . . Prototype ID Bank 1 | . 1 . . . Branch Access Points 1 | . 1 . . . Unreport Threat 3 | . 3 . . . Derelict Proto ID Bank 1 | . . . 1 . Fabricator Hacks . | . . . . . Repair Station Hacks . | . . . . . Recycling Unit Hacks 1 | . 1 . . . Retrieve Components 1 | . 1 . . . Scanalyzer . | . . . . . Garrison Access Hacks . | . . . . . Unauthorized Hacks . | . . . . . Terminals . | . . . . . Fabricators . | . . . . . Repair Stations . | . . . . . Recycling Units . | . . . . . Scanalyzers . | . . . . . Garrison Access . | . . . . . Data Cores Recovered 1 | . 1 . . . Used . | . . . . . Hacking Detections 7 | . 7 . . . Full Trace Events . | . . . . . Feedback Events . | . . . . . Feedback Blocked . | . . . . . Robot Schematics Acquired . | . . . . . Robots Built . | . . . . . Authchips . | . . . . . Time . | . . . . . Total Robot Build Rating . | . . . . . Part Schematics Acquired . | . . . . . Parts Built . | . . . . . Authchips . | . . . . . Time . | . . . . . Total Part Build Rating . | . . . . . Parts Repaired . | . . . . . Time . | . . . . . Parts Recycled . | . . . . . Recycled Matter . | . . . . . Retrieved Matter . | . . . . . Retrieved Components 4 | . 4 . . . Parts Scanalyzed . | . . . . . Part Schematics Acquired . | . . . . . Parts Damaged . | . . . . . Bothacking | -11 -10 -10 -10 -9 ------------ Run | Yrd Mat Min Exi Min Used RIF Installer . | . . . . . Robots Hacked . | . . . . . Non-combat . | . . . . . Combat . | . . . . . Robot Hacks Applied . | . . . . . Relay Couplers Released . | . . . . . Fabnet Peak Effective % . | . . . . . Robots Rewired . | . . . . . Allies Hacked . | . . . . . Hacks Repelled . | . . . . . Allies | -11 -10 -10 -10 -9 -------- Run | Yrd Mat Min Exi Min Total Allies . | . . . . . Largest Group . | . . . . . Highest-Rated Group . | . . . . . Highest-Rated Ally . | . . . . . Total Orders . | . . . . . Ally Attacks . | . . . . . Total Damage . | . . . . . Kills . | . . . . . Allies Corrupted . | . . . . . Allies Melted . | . . . . . Intel | -11 -10 -10 -10 -9 ------- Run | Yrd Mat Min Exi Min Robot Analysis Total 3 | . 3 . . . Derelict Logs Recovered 2 | . . 2 . . Drone Launches . | . . . . . Drone Recoveries . | . . . . . Exploration | -11 -10 -10 -10 -9 ------------- Run | Yrd Mat Min Exi Min Turns Passed 3980 | 2 2177 1094 574 133 Spaces Moved 1732 | 2 761 652 268 49 Core . | . . . . . Treads 485 | . 485 . . . Legs 70 | 2 68 . . . Wheels 1177 | . 208 652 268 49 Hover . | . . . . . Flight . | . . . . . Fastest Speed 120 | 120 120 140 200 215 Average Speed 211 | 120 253 160 213 215 Slowest Speed 480 | 120 480 200 215 215 Overloaded Moves . | . . . . . Propulsion Burnouts . | . . . . . Robots Hopped . | . . . . . Cave-ins Triggered . | . . . . . Exploration Rate (%) 54 | 2 98 97 61 14 Regions Visited 4 Branch Regions 3 Pre-discovered Areas 2 | . . 1 1 . Known Exits Taken 1 | . 1 . . . Unknown Exits Taken 3 | 1 . 1 1 . Scrap Searched 2 | . . 2 . . Spaces Dug 21 | . . 11 . 10 Terrain Destroyed 77 | . . 53 . 24 Melee . | . . . . . Projectile 4 | . . 4 . . AOE 73 | . . 49 . 24 Terrain Rammed . | . . . . . Walls Destroyed . | . . . . . Machines Disabled . | . . . . . Actions | -11 -10 -10 -10 -9 --------- Run | Yrd Mat Min Exi Min Total 1920 | 1 912 673 273 61 Wait 49 | . 47 2 . . Move 1728 | 1 760 651 267 49 Hop . | . . . . . Pick Up 30 | . 27 . 3 . Fast Attach 4 | . 4 . . . Attach 7 | . 3 1 1 2 Detach 3 | . 3 . . . Swap 9 | . 5 3 . 1 Drop 15 | . 13 . 2 . Fire 74 | . 49 16 . 9 Melee . | . . . . . Ram 1 | . 1 . . . Kick . | . . . . . Crush . | . . . . . Escape Stasis . | . . . . . Rewire . | . . . . . Trap . | . . . . . Miscellaneous . | . . . . . Route ------- -11/Scrapyard -10/Materials (discovered 5 exits: [*Mat x3] / *Min x2) -10/Mines (discovered 3 exits: [*Mat x2] / *Exi) -10/Exiles (discovered 2 exits: [*Min x2]) -9/Mines (discovered 1 exit: [*Mat]) History --------- Turn | Location | Event 1 | -11/Scrapyard | Discovered new exit (range 1) 3 | -11/Scrapyard | Entered Materials 300 | -10/Materials | Build established: Mutant 805 | -10/Materials | Discovered new exit (range 6) 1022 | -10/Materials | Discovered new exit (range 16) 1347 | -10/Materials | Discovered new exit (range 13) 1626 | -10/Materials | Identified exit to Mines 2011 | -10/Materials | Discovered new exit (range 15) 2180 | -10/Materials | Entered Mines 2303 | -10/Mines | Deemed a non-threat by the Exiles lab entrance 2304 | -10/Mines | Discovered new exit (range 5) 2352 | -10/Mines | Learned 8 Materials zone layouts 2447 | -10/Mines | Discovered new exit (range 9) 2800 | -10/Mines | Core integrity fell below 50% 2813 | -10/Mines | Destroyed YI-UF0 2898 | -10/Mines | Discovered new exit (range 10) 2924 | -10/Mines | Learned location of Storage (-8) 3274 | -10/Mines | Entered Exiles 3306 | -10/Exiles | Discovered new exit (range 15) 3328 | -10/Exiles | Met 8R-AWN 3360 | -10/Exiles | Met EX-HEX 3428 | -10/Exiles | Met EX-BIN 3458 | -10/Exiles | Aligned with FarCom system 3461 | -10/Exiles | Given EX-Vault access code 3521 | -10/Exiles | Opened EX-Vault 3541 | -10/Exiles | Found Field Lobotomy Kit 3587 | -10/Exiles | Warned to stay clear of 0b10 Research branches 3651 | -10/Exiles | Met EX-DEC 3681 | -10/Exiles | Learned location of Zion (-6) 3825 | -10/Exiles | Discovered new exit (range 14) 3848 | -10/Exiles | Left Exiles lab with Field Lobotomy Kit 3848 | -10/Exiles | Entered Mines 3904 | -9/Mines | Discovered new exit (range 6) 3950 | -9/Mines | Assembled infested the area 3966 | -9/Mines | Core integrity fell below 20% 3981 | -9/Mines | Destroyed by as-89479 with Assembled Heavy Rifle Last Messages --------------- 03877_ R-06 Scavenger collects Lgt. Assault Rifle. 03879_ U-05 Engineer lays Concrete. 03886_ K-01 Serf collects debris. 03887_ U-05 Engineer lays Concrete. 03889_ K-01 Serf cleans the Core Extractor. 03893_ K-01 Serf collects debris. 03904_ EXIT=FOUND 03905_ K-01 Serf collects debris. 03918_ K-01 Serf cleans the Core Extractor. 03950_ ALERT: Infestation in the mines, dispatching Demolisher response squad. 03960_ C-30 ARC bursts open, deploying its payload. 03960_ D-53 Grenadier unfolds itself. 03966_ D-53 Grenadier knocked back. 03967_ Imp. Light Cannon destroyed. 03969_ Ion Engine destroyed. 03971_ The unstable cave ceiling collapses. 03980_ Wheel destroyed. Map ----- +----------------------------------------------------+ | | | | | | | | | | | | | | | | | | | | | | | | | ?????????????????????????????????????????????????? | | ?????????????????????????????????????????????????? | | ????????????????????????????????????????????????## | | ????????????????????????????????????????????????# | | ????????????????????????????????????????????????# | | ????????????????????????????????????????######### | | ????????????????????????????????????????# | | ?????????????????????###????????????????# ###### | | ?????????????????????? #####???????????# #????## | | ?????????????????????## ##??????????# #?????? | | ????????????????????## ###????????# #?????? | | ????????????????????# # #??????# #?????? | | ????????????????????# ######?# #?????? | | ????????????????????# @ d%%k### #?????? | | ????????????????????# #### ### #??### | | ????????????????????# ###??# ## # | | ????????????????????# ###??### # | | ??????????????????? ## ##????# """ ### | | ??????????????????! ??#######?????# #### """ #?? | | ????????????????! !???????????????# #??## """ < | | ???????????????! !????????????????# #???# | | ?????????????? a ?????????????????# #??? ### | | ?????????????# ??????????????????# #??? ##??? | | ?????????????? ??????????????????? #???# ##???? | | ??????????????????????????????????###???#####????? | | ?????????????????????????????????????????????????? | | ?????????????????????????????????????????????????? | | ?????????????????????????????????????????????????? | | ?????????????????????????????????????????????????? | | ????????????????????????d????????????????????????? | | ?????????????????????????????????????????????????? | | ?????????????????????????????????????????????????? | | ?????????????????????????????????????????????????? | | ?????????????????????????????????????????????????? | | ?????????????????????????????????????????????????? | | ?????????????????????????????????????????????????? | | ?????????????????????????????????????????????????? | | ?????????????????????????????????????????????????? | +----------------------------------------------------+ Best States ------------- Heat Dissipation 25 Energy Generation 10 Energy Capacity 250 Matter Stores 300 Matter Capacity 300 Sight Range 16 Robot Scan Range 14 Terrain Scan Density 10 Core Shielding 20 Evasion (%) 55 Recoil Reduction 2 Item Schematics ----------------- None Robot Schematics ------------------ None Fabricated ------------ Nothing Alien Tech Used ----------------- None Achievements -------------- None Challenges ------------ None Game ------ Seed SensorDecoderDrive Manual? 0 Play Time 00:23:02 Cumulative 294.0 hours Start 2024.06.06 @ 18:41:55 End 2024.06.06 @ 19:04:06 Sessions 1 Manual Loads 0 Difficulty Rogue Special Mode None Game No. 173 Rogue 129 Adventurer 44 Explorer 0 Win Type - Total 2 Types 2/0/0/0/0/0/0/0/0 Lore% 58 Gallery% 63 Achievement% 58 Wizard Run 0 Options --------- Layout 2 ASCII 0 Keyboard 1 Movement Vi Keybinds 1 Fullscreen 2 Font 24/Smallcaps Map View 25x22 Zoom Use 99% Tactical HUD 1 Map Filters NONE Filters NONE Steam 1 RUN: 5aaccf1b-ee28-4d73-bf2d-bb639cc3b79d